fUST/lending_fUST_20251219
["ID","MTS","AMOUNT","RATE_DAILY","PERIOD"]
[399071583,1766102167148,1000.0,0.00014247,2]
[399071584,1766102167519,500.0,0.00013699,2]
[399071587,1766102168379,500.0,0.00013699,2]
[399071588,1766102168436,500.59679331,0.00014247,2]
[399071590,1766102171982,500.0,0.00013273,2]
[399071591,1766102173072,500.0,0.00013273,2]
[399071612,1766102223714,500.0,0.00013273,2]
[399071615,1766102228275,500.0,0.00013273,2]
[399071616,1766102228334,500.0,0.00013821,2]
[399071619,1766102231649,500.0,0.00013699,2]
[399071620,1766102231804,1001.0992649,0.00014247,2]
[399071621,1766102232286,500.0,0.00013699,2]
[399071622,1766102232337,1000.0,0.00014247,2]
[399071623,1766102232723,500.46061568,0.00013273,2]
[399071625,1766102233176,500.0,0.00013699,2]
[399071626,1766102233229,1000.0,0.00014247,2]
[399071680,1766102285803,500.0,0.00013699,2]
[399071681,1766102285836,500.0,0.00014247,2]
[399071684,1766102286141,500.0,0.00013699,2]
[399071685,1766102286195,1000.0,0.00014247,2]
[399071686,1766102286253,498.45011942,0.00014795,2]
[399071687,1766102286283,501.54988058,0.00014795,2]
[399071722,1766102344002,500.0,0.00013273,2]
[399071723,1766102344053,500.0,0.00013273,2]
[399071724,1766102344085,1107.64901009,0.00013821,2]
[399071725,1766102344117,1000.0,0.00013821,2]
[399071726,1766102344153,1500.0,0.00014368,2]
[399071727,1766102344214,500.0,0.00014916,2]
[399071731,1766102346591,500.0,0.00013273,2]
[399071732,1766102347134,500.0,0.00013699,2]
[399071733,1766102347168,1000.87159676,0.00014247,2]
[399071734,1766102347201,450.15916011,0.00013273,2]
[399071735,1766102347566,500.0,0.00013273,2]
[399071746,1766102404669,500.0,0.00013699,2]
[399071747,1766102404732,939.78035246,0.00014247,2]
[399071748,1766102404765,60.21964754,0.00014247,2]
[399071749,1766102404801,500.0,0.00013273,2]
[399071750,1766102404836,175.5165818,0.00014795,2]
[399071751,1766102404882,1000.0,0.00013821,2]
[399071752,1766102405038,500.0,0.00013273,2]
[399071753,1766102405096,1000.0,0.00013821,2]
[399071754,1766102405155,1500.0,0.00014368,2]
[399071755,1766102405211,1549.49754898,0.00014916,2]
[399071756,1766102406865,500.27731732,0.00013699,2]
[399071757,1766102407292,500.39605779,0.00013699,2]
[399071758,1766102407534,500.0,0.00013273,2]
[399071759,1766102407805,500.36694935,0.00013699,2]
[399071760,1766102407889,500.0,0.00013273,2]
[399071783,1766102463765,500.0,0.00013699,2]
[399071784,1766102463820,1000.0,0.00014247,2]
[399071785,1766102465281,500.0,0.00013699,2]
[399071786,1766102465317,1000.67474989,0.00014247,2]
[399071860,1766102524103,500.0,0.00013699,2]
[399071861,1766102524682,500.0,0.00013273,2]
[399071862,1766102524719,500.0,0.00014368,2]
[399071863,1766102524757,1000.0,0.00013821,2]
[399071864,1766102524977,657.25392582,0.00014247,2]
[399071865,1766102525074,500.0,0.00013699,2]
[399071896,1766102583879,500.0,0.00013699,2]
[399071902,1766102643263,500.0,0.00013699,2]
[399071903,1766102643319,1000.0,0.00014247,2]
[399071904,1766102643373,1342.08132429,0.00014795,2]
[399071905,1766102643401,115.02657251,0.00014795,2]
[399071906,1766102651208,500.0,0.00013699,2]
[399071913,1766102688893,528.0,0.00017995,2]
[399071956,1766102705885,500.0,0.00013699,2]
[399071957,1766102705941,1000.0,0.00014247,2]
[399071958,1766102706001,219.06897463,0.00014795,2]
[399071959,1766102706390,500.0,0.00013273,2]
[399071960,1766102706425,1000.0,0.00013821,2]
[399071961,1766102706460,500.0,0.00013273,2]
[399071962,1766102706495,500.0,0.00013699,2]
[399071963,1766102706533,1500.0,0.00014368,2]
[399071964,1766102706616,1000.0,0.00013821,2]
[399071965,1766102706654,1001.82821113,0.00014247,2]
[399071966,1766102706725,2000.0,0.00014916,2]
[399071967,1766102706760,279.11281424,0.00014368,2]
[399071968,1766102706791,1220.88718576,0.00014368,2]
[399071969,1766102706880,2500.0,0.00015464,2]
[399071970,1766102706915,2000.0,0.00014916,2]
[399071971,1766102706949,2778.04545937,0.00016012,2]
[399071972,1766102706981,1501.07735487,0.00015464,2]
[399071973,1766102707008,998.92264513,0.00015464,2]
[399071974,1766102707044,1527.70513452,0.00016012,2]
[399071975,1766102718578,500.0,0.00013273,2]
[399071976,1766102718633,325.86554847,0.00013821,2]
[399071990,1766102769217,635.19392553,0.00013273,2]
[399071991,1766102773503,500.0,0.00013273,2]
[399071992,1766102776751,500.0,0.00013273,2]
[399071993,1766102778116,201.72,9.372e-05,2]
[399071994,1766102778514,403.43,9.818e-05,2]
[399071995,1766102779076,605.15,0.00010264,2]
[399071996,1766102779472,806.87,0.0001071,2]
[399071997,1766102779912,1008.59,0.00011157,2]
[399071998,1766102780326,1210.3,0.00011603,2]
[399072001,1766102780748,776.26274635,0.00012049,2]
[399072002,1766102780789,635.75725365,0.00012049,2]
[399072003,1766102781164,1613.74,0.00012495,2]
[399072004,1766102781559,1815.46,0.00012942,2]
[399072005,1766102781976,2017.17,0.00013388,2]
[399072047,1766102808153,183.76614309,0.00017995,2]
[399072055,1766102815280,-3974.5831127,0.00022953,2]
[399072062,1766102830223,501.12574512,0.00013273,2]
[399072064,1766102833887,425.74949727,0.00013699,2]
[399072066,1766102836396,500.0,0.00013699,2]
[399072067,1766102836432,1099.54987091,0.00014247,2]
[399072068,1766102839133,171.23046597,0.00013273,2]
[399072069,1766102840111,-385.56871377,0.00022723,2]
[399072070,1766102840132,-1025.4168873,0.00022953,2]
[399072071,1766102840152,-150.0,0.00023302,2]
[399072072,1766102840171,-155.18993506,0.00023653,2]
[399072073,1766102840190,-796.0,0.00023895,2]
[399072074,1766102840209,-334.97,0.00025204,14]
[399072075,1766102840228,-2000.0,0.00025205,30]
[399072076,1766102840248,-177.0,0.00025302,2]
[399072077,1766102840268,-183.76614309,0.00025341,56]
[399072078,1766102840288,-300.0,0.00026574,2]
[399072079,1766102840306,-175.0,0.00026848,2]
[399072080,1766102840326,-204.0,0.00027302,2]
[399072081,1766102840346,-225.11185878,0.00029302,2]
[399072082,1766102840365,-188.33721558,0.00030561,2]
[399072083,1766102840385,-400.0,0.00030888,2]
[399072084,1766102840404,-1000.0,0.00030889,30]
[399072085,1766102840423,-160.0,0.00031078,2]
[399072086,1766102840442,-260.0,0.00031626,2]
[399072087,1766102840461,-360.0,0.00032174,2]
[399072088,1766102840480,-961.2434,0.00032392,2]
[399072089,1766102840498,-2050.471708,0.00032392,2]
[399072090,1766102840516,-460.0,0.00032722,2]
[399072091,1766102840536,-560.0,0.0003326,2]
[399072092,1766102840750,-560.0,0.0003327,2]
[399072093,1766102840773,-183.18,0.00033692,36]
[399072094,1766102840795,-5893.5715425,0.00033701,2]
[399072095,1766102840814,-660.0,0.00033818,2]
[399072096,1766102840833,-760.0,0.00034365,2]
[399072097,1766102840852,-500.0,0.00035076,30]
[399072098,1766102840870,-999.0,0.00035077,2]
[399072099,1766102840891,-300.0,0.00035814,2]
[399072100,1766102840913,-188.33721558,0.00037749,2]
[399072101,1766102840934,-151.62,0.00037875,60]
[399072102,1766102840957,-450.15916011,0.00037923,15]
[399072103,1766102840980,-500.0,0.00037923,15]
[399072104,1766102841002,-299.77441939,0.00037923,15]
[399072105,1766102841025,-500.0,0.00037923,15]
[399072106,1766102841047,-500.0,0.00037923,15]
[399072107,1766102841068,-500.0,0.00037923,15]
[399072108,1766102841089,-500.0,0.00037923,15]
[399072109,1766102841111,-500.0,0.00037923,15]
[399072110,1766102841133,-500.0,0.00037923,15]
[399072111,1766102841155,-500.0,0.00037923,15]
[399072112,1766102841181,-500.0,0.00037923,15]
[399072113,1766102841203,-500.0,0.00037923,15]
[399072114,1766102841225,-500.0,0.00037923,15]
[399072115,1766102841248,-500.0,0.00037923,15]
[399072116,1766102841270,-500.0,0.00037923,15]
[399072117,1766102841291,-500.0,0.00037923,15]
[399072118,1766102841312,-500.0,0.00037923,15]
[399072119,1766102841331,-500.0,0.00037923,15]
[399072120,1766102841354,-500.0,0.00037923,15]
[399072121,1766102841375,-500.0,0.00037923,15]
[399072122,1766102841400,-500.0,0.00037923,15]
[399072123,1766102841420,-277.66797488,0.00037923,15]
[399072124,1766102841442,-500.0,0.00037923,15]
[399072125,1766102841463,-500.0,0.00037923,15]
[399072126,1766102841483,-500.0,0.00037923,15]
[399072127,1766102841504,-500.0,0.00037923,15]
[399072128,1766102841526,-500.0,0.00037923,15]
[399072129,1766102841547,-500.0,0.00037923,15]
[399072130,1766102841569,-500.0,0.00037923,15]
[399072131,1766102841589,-500.0,0.00037923,15]
[399072132,1766102841611,-500.0,0.00037923,15]
[399072133,1766102841633,-500.0,0.00037923,15]
[399072134,1766102841655,-500.0,0.00037923,15]
[399072135,1766102841678,-385.6856826,0.00037923,15]
[399072136,1766102841700,-500.0,0.00037923,15]
[399072137,1766102841724,-500.0,0.00037923,15]
[399072138,1766102841745,-500.0,0.00037923,15]
[399072139,1766102841767,-447.37577684,0.00037923,15]
[399072140,1766102841789,-500.0,0.00037923,15]
[399072141,1766102841811,-500.0,0.00037923,15]
[399072142,1766102841833,-151.62,0.00037975,60]
[399072143,1766102841853,-561.62781408,0.00038027,2]
[399072144,1766102841873,-39802.10921644,0.00038028,2]
[399072145,1766102841919,501.42230241,0.00013273,2]
[399072146,1766102841988,535.03872158,0.00014795,2]
[399072147,1766102842019,964.96127842,0.00014795,2]
[399072148,1766102842055,1000.0,0.00015342,2]
[399072149,1766102842096,500.0,0.00013699,2]
[399072150,1766102842130,1000.0,0.00014247,2]
[399072151,1766102842254,500.0,0.00013699,2]
[399072152,1766102842992,502.0021657,0.00013273,2]
[399072153,1766102847096,-300.0,0.00031506,30]
[399072154,1766102847124,-300.0,0.00031506,30]
[399072155,1766102847149,-300.0,0.00031506,30]
[399072156,1766102847176,-300.0,0.00031506,30]
[399072157,1766102847198,-300.0,0.00031506,30]
[399072158,1766102847224,-300.0,0.00031506,30]
[399072159,1766102847252,-300.0,0.00031506,30]
[399072160,1766102847284,-300.0,0.00031506,30]
[399072161,1766102847308,-300.0,0.00031506,30]
[399072162,1766102847332,-300.0,0.00031506,30]
[399072163,1766102847359,-300.0,0.00031506,30]
[399072164,1766102847383,-300.0,0.00031506,30]
[399072165,1766102847407,-300.0,0.00031506,30]
[399072166,1766102847431,-5000.0,0.00037648,2]
[399072167,1766102847452,-12575.76866906,0.00038028,2]
[399072168,1766102847476,-151.62,0.00038075,60]
[399072169,1766102847498,-151.62,0.00038175,60]
[399072170,1766102847521,-151.62,0.00038275,60]
[399072171,1766102847544,-151.62,0.00038375,120]
[399072172,1766102847567,-151.62,0.00038475,120]
[399072173,1766102847590,-348.58753459,0.00038548,2]
[399072174,1766102847612,-279.3418831,0.00038548,2]
[399072175,1766102847635,-151.62,0.00038575,120]
[399072176,1766102847658,-151.62,0.00038675,120]
[399072177,1766102847681,-151.62,0.00038775,120]
[399072178,1766102847704,-24745.1544751,0.00038814,2]
[399072179,1766102847731,-151.62,0.00038875,120]
[399072180,1766102847755,-456.59862993,0.00038962,15]
[399072181,1766102847778,-500.0,0.00038962,7]
[399072182,1766102847801,-631.83074395,0.00038962,7]
[399072183,1766102847825,-7724.7651246,0.00038963,2]
[399072184,1766102847850,-7827.2843168,0.00038963,2]
[399072185,1766102847875,-151.62,0.00038975,120]
[399072186,1766102847900,-151.62,0.00039075,120]
[399072187,1766102847924,-151.62,0.00039175,120]
[399072188,1766102847947,-151.62,0.00039275,120]
[399072189,1766102847972,-151.62,0.00039375,120]
[399072190,1766102847996,-151.62,0.00039475,120]
[399072191,1766102848019,-151.62,0.00039575,120]
[399072192,1766102848043,-151.62,0.00039675,120]
[399072193,1766102848066,-151.62,0.00039775,120]
[399072194,1766102848091,-151.62,0.00039875,120]
[399072195,1766102848113,-151.62,0.00039975,120]
[399072196,1766102848133,-300.0,0.0004,5]
[399072197,1766102848154,-151.62,0.00040075,120]
[399072198,1766102848174,-411.53673806,0.00040087,2]
[399072199,1766102848195,-151.62,0.00040175,120]
[399072200,1766102848214,-200.0,0.00040274,5]
[399072201,1766102848235,-151.62,0.00040275,120]
[399072202,1766102848255,-151.62,0.00040375,120]
[399072203,1766102848276,-151.62,0.00040475,120]
[399072204,1766102848297,-151.62,0.00040575,120]
[399072205,1766102848316,-500.0,0.00040614,120]
[399072206,1766102848337,-395.04,0.00040643,3]
[399072207,1766102848540,-151.62,0.00040675,120]
[399072208,1766102848559,-170.42,0.000407,7]
[399072209,1766102848579,-151.62,0.00040775,120]
[399072210,1766102848600,-151.62,0.00040875,120]
[399072211,1766102848622,-151.77,0.00040975,120]
[399072212,1766102848642,-200.0,0.00041567,120]
[399072213,1766102848662,-632.0,0.00041718,2]
[399072214,1766102848681,-2158.0,0.00041718,2]
[399072215,1766102848701,-1361.0,0.00041718,2]
[399072216,1766102848725,-415.0,0.00042026,2]
[399072217,1766102848745,-200.0,0.00042169,120]
[399072218,1766102848766,-475.0,0.00042695,120]
[399072219,1766102848786,-475.0,0.00042695,120]
[399072220,1766102848806,-475.0,0.00042695,120]
[399072221,1766102848825,-475.0,0.00042695,120]
[399072222,1766102848845,-5521.3902809,0.00043819,2]
[399072223,1766102848865,-1723.6280793,0.00043987,2]
[399072224,1766102848884,-1746.5032031,0.00043987,2]
[399072225,1766102848903,-222.3,0.00044,30]
[399072226,1766102848922,-513.21,0.00044,2]
[399072227,1766102848941,-150.0,0.00044223,2]
[399072228,1766102848959,-150.115,0.00044223,2]
[399072229,1766102848978,-150.0,0.00044223,2]
[399072230,1766102848996,-281.503,0.00044223,2]
[399072231,1766102849015,-516.0,0.00044483,120]
[399072232,1766102849036,-706.15127664,0.0004455,2]
[399072233,1766102849057,-200.0,0.00044699,120]
[399072234,1766102849076,-900.244,0.00044718,2]
[399072235,1766102849095,-1361.0,0.00044718,2]
[399072236,1766102849116,-1231.9886976,0.00044936,2]
[399072237,1766102849136,-188.5255528,0.00044937,2]
[399072238,1766102849156,-34086.21662617,0.00045,10]
[399072239,1766102849176,-415.0,0.00045026,2]
[399072240,1766102849198,-384.5934093,0.00045109,2]
[399072241,1766102849221,-389.6975394,0.00045109,2]
[399072242,1766102849242,-31327.2592806,0.0004544,30]
[399072243,1766102854316,166.31,8.769e-05,2]
[399072244,1766102854754,332.63,9.187e-05,2]
[399072245,1766102855156,498.94,9.605e-05,2]
[399072246,1766102855577,665.25,0.00010022,2]
[399072248,1766102855995,831.57,0.0001044,2]
[399072249,1766102856440,997.88,0.00010857,2]
[399072250,1766102856871,1164.2,0.00011275,2]
[399072251,1766102857274,876.26655588,0.00011692,2]
[399072252,1766102857313,454.24344412,0.00011692,2]
[399072253,1766102857698,1496.82,0.0001211,2]
[399072255,1766102858570,1663.14,0.00012528,2]
[399072260,1766102879482,237.26,8.238e-05,14]
[399072309,1766102930872,150.0,9.207e-05,2]
[399072310,1766102931267,150.0,9.646e-05,2]
[399072311,1766102931672,150.0,0.00010084,2]
[399072312,1766102932100,199.58,0.00010523,2]
[399072313,1766102932517,249.47,0.00010961,2]
[399072314,1766102932934,299.36,0.000114,2]
[399072315,1766102933354,349.26,0.00011838,2]
[399072316,1766102933769,399.15,0.00012277,2]
[399072318,1766102934176,449.05,0.00012715,2]
[399072320,1766102934583,498.94,0.00013153,2]
[399072330,1766102952121,-182.74901408,0.00027302,2]
[399072332,1766102952142,-730.99605633,0.00030142,2]
[399072334,1766102952162,-1644.74112675,0.00032982,2]
[399072335,1766102952182,-2923.98422533,0.00035823,2]
[399072336,1766102953092,-2514.20778215,0.00037595,2]
[399072342,1766102960312,600.0,0.00014221,2]
[399072343,1766102960336,1200.0,0.00015316,2]
[399072344,1766102960379,300.0,0.00013673,2]
[399072345,1766102960432,900.0,0.00014768,2]
[399072346,1766102960542,835.17594504,0.00015864,2]
[399072347,1766102960571,533.34973036,0.00015864,2]
[399072349,1766102963462,500.0,0.00013273,2]
[399072350,1766102963764,501.04215451,0.00013273,2]
[399072353,1766102966149,-2485.79221785,0.00037595,2]
[399072354,1766102966171,-500.0,0.00037975,2]
[399072355,1766102966191,-965.21460636,0.00038663,2]
[399072366,1766103004318,150.0,9.204e-05,2]
[399072367,1766103004731,150.0,9.642e-05,2]
[399072368,1766103005133,150.0,0.0001008,2]
[399072369,1766103005563,150.0,0.00010518,2]
[399072370,1766103005972,150.0,0.00010957,2]
[399072371,1766103006397,150.0,0.00011395,2]
[399072401,1766103031992,-607.51500014,0.00024953,2]
[399072407,1766103032048,-1780.10346347,0.00024953,2]
[399072409,1766103032061,-2612.38153639,0.00024953,2]
[399072411,1766103032070,-818.0,0.00024953,2]
[399072413,1766103032080,-545.65750034,0.00030142,2]
[399072415,1766103032090,-982.18350061,0.00032982,2]
[399072417,1766103032099,-1746.10400108,0.00035823,2]
[399072419,1766103032109,-3603.51074571,0.00038663,2]
[399072421,1766103032119,-2728.28750169,0.00038663,2]
[399072423,1766103032129,-8012.8696239,0.00040555,28]
[399072425,1766103032139,-292.28152076,0.00040652,7]
[399072428,1766103032151,-319.61904095,0.00040652,31]
[399072430,1766103032161,-500.0,0.00040652,7]
[399072433,1766103032170,-542.85396473,0.00040652,31]
[399072435,1766103032180,-475.29644165,0.00040652,31]
[399072436,1766103032190,-500.0,0.00040652,31]
[399072438,1766103032199,-383.04175298,0.00040652,31]
[399072441,1766103032210,-399.06136486,0.00040652,31]
[399072442,1766103032219,-67807.76935552,0.00040655,30]
[399072445,1766103032231,-988.37025698,0.00040655,30]
[399072447,1766103032243,-2997.86350935,0.00040655,30]
[399072449,1766103032258,-1492.63350177,0.00040655,30]
[399072451,1766103032268,-25431.18893654,0.00040655,30]
[399072502,1766103038027,-1668.75000003,0.00040655,30]
[399072503,1766103038039,-653.5749005,0.00040655,30]
[399072505,1766103038087,-72246.48616293,0.00040655,30]
[399072506,1766103038096,-48307.79185038,0.00040655,30]
[399072507,1766103038108,-9556.62907546,0.00040655,30]
[399072508,1766103038119,-5673.50298572,0.00040655,30]
[399072509,1766103038146,-617.6599536,0.00040655,30]
[399072510,1766103038158,-300.0,0.00040655,30]
[399072511,1766103038856,-9175.978296,0.00040655,30]
[399072512,1766103039007,-3467.43783884,0.00040655,30]
[399072513,1766103039018,-158.03642753,0.00040655,120]
[399072514,1766103039028,-174.44234041,0.00040655,120]
[399072515,1766103039038,-319.36929541,0.00040655,120]
[399072516,1766103039047,-319.36929541,0.00040655,120]
[399072517,1766103039057,-319.36929541,0.00040655,120]
[399072518,1766103039068,-319.36929541,0.00040655,120]
[399072519,1766103039077,-319.36929541,0.00040655,120]
[399072520,1766103039087,-319.36929541,0.00040655,120]
[399072521,1766103039096,-319.36929541,0.00040655,120]
[399072522,1766103039106,-319.36929541,0.00040655,120]
[399072523,1766103039115,-319.36929541,0.00040655,120]
[399072524,1766103039124,-319.36929541,0.00040655,120]
[399072525,1766103039134,-319.36929541,0.00040655,120]
[399072526,1766103039143,-319.36929541,0.00040655,120]
[399072527,1766103039152,-319.36929541,0.00040655,120]
[399072528,1766103039162,-319.36929541,0.00040655,120]
[399072529,1766103039172,-319.36929541,0.00040655,120]
[399072530,1766103039182,-183.76614308,0.00040655,120]
[399072531,1766103039192,-176.95834808,0.00040655,120]
[399072532,1766103039202,-176.95834808,0.00040655,120]
[399072533,1766103039211,-274.17,0.000407,30]
[399072534,1766103039220,-170.42,0.000407,7]
[399072535,1766103039230,-681.83,0.000407,2]
[399072536,1766103039239,-494.55505243,0.000407,2]
[399072538,1766103039249,-600.0,0.00041465,60]
[399072539,1766103039259,-200.0,0.00042472,120]
[399072540,1766103039269,-337.85532015,0.00043472,5]
[399072541,1766103039278,-564.91600035,0.00043472,5]
[399072542,1766103039287,-389.6544379,0.00043878,2]
[399072543,1766103039296,-398.38575382,0.00044615,2]
[399072544,1766103039305,-496.60779218,0.00044615,2]
[399072545,1766103039314,-2000.0,0.00045439,30]
[399072546,1766103039323,-2074.0,0.00045439,30]
[399072547,1766103039332,-2150.738,0.00045439,30]
[399072548,1766103039342,-2230.315306,0.00045439,30]
[399072549,1766103039352,-2312.83697232,0.00045439,30]
[399072550,1766103039365,-2398.4119403,0.00045439,30]
[399072551,1766103039374,-2487.15318209,0.00045439,30]
[399072552,1766103039383,-2579.17784983,0.00045439,30]
[399072553,1766103039392,-920.18961904,0.00045439,30]
[399072554,1766103039401,-878.0,0.00045439,30]
[399072555,1766103039410,-878.0,0.00045439,30]
[399072556,1766103039420,-878.0,0.00045439,30]
[399072557,1766103039429,-878.0,0.00045439,30]
[399072558,1766103039438,-256.4475463,0.00045439,30]
[399072559,1766103039448,-63955.5276,0.0004544,30]
[399072560,1766103039458,-165.0,0.000455,120]
[399072561,1766103039468,-720.0,0.00045612,120]
[399072562,1766103039477,-193.54,0.00046041,14]
[399072563,1766103039487,-193.54,0.00046041,14]
[399072564,1766103039497,-166.52,0.00046041,14]
[399072565,1766103039506,-166.53,0.00046141,14]
[399072566,1766103039517,-282.85518,0.00046143,2]
[399072567,1766103039527,-205.53499945,0.00046631,2]
[399072568,1766103039538,-179.08317162,0.00046825,5]
[399072569,1766103039547,-150.0,0.00047223,2]
[399072570,1766103039557,-1300.0,0.00047671,60]
[399072571,1766103039567,-1358.0,0.00047718,2]
[399072572,1766103039576,-196.18043844,0.00047836,7]
[399072573,1766103039586,-200.0,0.00047859,120]
[399072574,1766103039595,-500.0,0.0004795,120]
[399072575,1766103039605,-1000.0,0.00048,120]
[399072576,1766103039614,-681.83,0.00048,2]
[399072577,1766103039624,-1300.0,0.00048219,60]
[399072578,1766103039633,-500.0,0.0004831,30]
[399072579,1766103039643,-2050.471708,0.00048588,2]
[399072580,1766103039652,-200.0,0.0004872,120]
[399072581,1766103039662,-1300.0,0.00048767,60]
[399072582,1766103039672,-3000.0,0.00048888,120]
[399072583,1766103039681,-500.0,0.0004889,18]
[399072584,1766103039691,-151.0,0.000489,30]
[399072585,1766103039700,-274.17,0.000489,30]
[399072586,1766103039709,-166.0,0.00049013,30]
[399072587,1766103039718,-152.0,0.00049013,30]
[399072588,1766103039727,-152.0,0.00049013,30]
[399072589,1766103039738,-152.0,0.00049013,30]
[399072590,1766103039749,-152.0,0.00049013,30]
[399072591,1766103039758,-152.0,0.00049013,30]
[399072592,1766103039768,-152.0,0.00049013,30]
[399072593,1766103039779,-152.0,0.00049013,30]
[399072594,1766103039791,-152.0,0.00049013,30]
[399072595,1766103039800,-152.0,0.00049013,30]
[399072596,1766103039810,-152.0,0.00049013,30]
[399072597,1766103039820,-152.0,0.00049013,30]
[399072598,1766103039829,-152.0,0.00049013,30]
[399072600,1766103039839,-152.0,0.00049013,30]
[399072602,1766103039849,-152.0,0.00049013,30]
[399072604,1766103039860,-152.0,0.00049013,30]
[399072606,1766103039870,-152.0,0.00049013,30]
[399072608,1766103039880,-152.0,0.00049013,30]
[399072609,1766103039889,-152.0,0.00049013,30]
[399072610,1766103039899,-152.0,0.00049013,30]
[399072611,1766103039908,-152.0,0.00049013,30]
[399072612,1766103039918,-152.0,0.00049013,30]
[399072613,1766103039927,-152.0,0.00049013,30]
[399072614,1766103039936,-152.0,0.00049013,30]
[399072616,1766103039947,-152.0,0.00049013,30]
[399072617,1766103039956,-152.0,0.00049013,30]
[399072619,1766103039966,-152.0,0.00049013,30]
[399072620,1766103039975,-152.0,0.00049013,30]
[399072622,1766103039985,-152.0,0.00049013,30]
[399072623,1766103039994,-166.0,0.00049013,30]
[399072625,1766103040004,-282.0,0.00049013,30]
[399072626,1766103040013,-166.0,0.00049013,30]
[399072628,1766103040023,-152.0,0.00049013,30]
[399072629,1766103040035,-166.0,0.00049013,30]
[399072630,1766103040046,-162.0,0.00049013,30]
[399072631,1766103040055,-334.0,0.00049013,30]
[399072632,1766103040064,-334.0,0.00049013,30]
[399072633,1766103040074,-334.0,0.00049013,30]
[399072634,1766103040083,-334.0,0.00049013,30]
[399072635,1766103040094,-574.12855637,0.00049183,2]
[399072636,1766103040104,-250.0,0.00049183,2]
[399072637,1766103040114,-250.0,0.00049183,2]
[399072638,1766103040124,-250.0,0.00049183,2]
[399072639,1766103040135,-250.0,0.00049183,2]
[399072640,1766103040144,-250.0,0.00049183,2]
[399072641,1766103040154,-244.16847174,0.00049183,2]
[399072642,1766103040164,-250.0,0.00049183,2]
[399072643,1766103040174,-250.0,0.00049183,2]
[399072644,1766103040184,-33483.3278171,0.00049213,2]
[399072645,1766103040194,-151.0,0.00049213,120]
[399072646,1766103040204,-151.0,0.00049213,120]
[399072647,1766103040214,-160.0,0.00049213,120]
[399072648,1766103040224,-274.069321,0.00049215,120]
[399072649,1766103040233,-274.069321,0.00049215,120]
[399072650,1766103040242,-274.069321,0.00049215,120]
[399072651,1766103040251,-274.069321,0.00049215,120]
[399072652,1766103040261,-372.988821,0.00049215,28]
[399072653,1766103040270,-372.988821,0.00049215,28]
[399072654,1766103040280,-151.0,0.00049215,120]
[399072655,1766103040289,-2540.264561,0.00049215,120]
[399072656,1766103040298,-2540.264561,0.00049215,120]
[399072657,1766103040307,-372.988821,0.00049215,28]
[399072658,1766103040316,-2540.264561,0.00049215,120]
[399072659,1766103040325,-372.988821,0.00049215,28]
[399072660,1766103040334,-2540.264561,0.00049215,120]
[399072661,1766103040344,-10000.0,0.00049215,2]
[399072662,1766103040353,-88888.0,0.00049215,120]
[399072663,1766103040362,-1821.14,0.000493,14]
[399072664,1766103040371,-500.0,0.00049315,120]
[399072665,1766103040381,-500.0,0.00049315,120]